bitfinex/quotes_ETHUSD_20251015
["timestamp","ask_amount","ask_price","bid_price","bid_amount"]
[1760509425442,1.92,4094.6,4093.2,0.1684]
[1760509425443,1.0781,4094.7,4094.2,2.44247836]
[1760509425764,0.2181,4094.8,4093.4,0.4574]
[1760509425944,0.2181,4094.8,4093.5,0.02442897]
[1760509426262,0.2181,4094.8,4094.6,2.44219125]
[1760509426658,0.6626,4094.8,4094.5,2.44228765]
[1760509426871,0.1216,4094.6,4094.5,2.44228765]
[1760509427074,0.2181,4094.8,4094.6,2.44218731]
[1760509427439,0.2181,4094.8,4094.7,2.44218135]
[1760509428042,0.1216,4095.0,4094.8,2.44210847]
[1760509428244,0.2181,4095.2,4095.1,2.4419428]
[1760509428673,0.2181,4095.2,4094.7,0.1216]
[1760509428674,0.1216,4095.4,4095.0,2.44195321]
[1760509429260,0.5661,4095.4,4095.0,2.44195321]
[1760509429446,0.5661,4095.4,4095.1,2.4419384]
[1760509429646,0.5661,4095.4,4095.0,2.44194304]
[1760509430758,0.5661,4095.4,4094.7,0.1216]
[1760509430759,0.5661,4095.4,4095.1,2.44193554]
[1760509431144,0.1216,4095.4,4095.1,2.44193554]
[1760509431386,0.1216,4095.4,4095.0,2.44199414]
[1760509431578,0.1216,4095.7,4095.1,0.1634]
[1760509431743,0.2181,4096.2,4095.1,0.1634]
[1760509431744,0.2181,4096.2,4095.3,1.92]
[1760509431950,0.4445,4096.4,4095.9,2.44141863]
[1760509432178,0.4445,4096.4,4095.7,2.44157398]
[1760509432379,0.4445,4096.4,4095.9,2.44145874]
[1760509432786,0.4445,4096.3,4096.0,2.44140036]
[1760509433081,0.4445,4096.3,4095.9,2.44145037]
[1760509433650,0.4297,4096.2,4095.8,2.44151644]
[1760509433850,0.4297,4096.2,4095.9,2.44146378]
[1760509434050,0.4297,4096.2,4096.0,2.44140108]
[1760509434245,0.4297,4096.2,4095.8,2.44146766]
[1760509434492,0.4297,4096.2,4095.5,2.441682]
[1760509434646,0.4297,4096.1,4094.5,0.4338]
[1760509434850,0.2268,4095.6,4095.3,2.44178075]
[1760509435253,0.4297,4095.5,4094.6,0.002]
[1760509435473,0.4297,4095.5,4095.0,2.44194905]
[1760509435681,0.2268,4095.6,4094.8,2.44211551]
[1760509435880,0.6565,4095.6,4095.0,2.44196041]
[1760509436088,0.6565,4095.6,4095.1,2.44193563]
[1760509436286,0.4297,4095.5,4094.9,2.44204946]
[1760509436597,0.2268,4095.6,4094.6,0.002]
[1760509436598,0.03827377,4095.0,4094.6,0.002]
[1760509436800,0.2268,4094.7,4094.6,0.002]
[1760509437199,0.6565,4094.7,4094.6,0.002]
[1760509438515,3.73228135,4094.7,4094.6,0.002]
[1760509438865,5.65228135,4094.7,4094.6,0.002]
[1760509439096,5.65228135,4094.7,4092.9,2.44321733]
[1760509439097,0.6336,4094.3,4089.3,0.09798001]
[1760509439399,0.6336,4091.4,4091.0,2.390088]
[1760509440073,9.35268813,4091.5,4091.0,2.390088]
[1760509440272,2.44433037,4091.1,4091.0,2.390088]
[1760509440467,5.21973037,4091.1,4091.0,2.390088]
[1760509441270,14.3456185,4091.1,4091.0,2.390088]
[1760509441596,14.3456185,4091.1,4089.1,0.4338]
[1760509441597,0.6336,4090.0,4089.1,0.4338]
[1760509441798,0.1216,4089.6,4089.1,0.6613]
[1760509442199,0.1216,4089.6,4089.2,2.87922732]
[1760509442498,0.1216,4090.0,4089.4,2.4453206]
[1760509442710,0.1216,4090.0,4089.3,0.5554]
[1760509442711,0.1216,4090.0,4089.5,2.44528257]
[1760509442912,0.1216,4090.0,4089.6,0.4338]
[1760509443081,0.1216,4090.0,4089.7,0.4338]
[1760509443626,0.1216,4090.0,4089.5,2.44527185]
[1760509443815,0.1216,4090.0,4089.5,2.87907185]
[1760509444007,0.1216,4090.0,4089.6,2.44521913]
[1760509444315,0.1216,4090.0,4089.7,0.4338]
[1760509444517,0.1216,4090.0,4089.8,0.4338]
[1760509444810,0.1216,4090.0,4089.8,2.44510593]
[1760509445111,0.6336,4090.5,4089.6,2.44522652]
[1760509445487,4.36457938,4090.7,4089.3,2.87919778]
[1760509445488,0.6336,4090.6,4089.7,2.44516563]
[1760509445809,0.6336,4090.6,4089.7,2.44512283]
[1760509446004,0.6336,4090.6,4089.8,2.44510562]
[1760509446410,2.44373694,4092.1,4089.6,0.4338]
[1760509446710,0.6336,4091.4,4089.6,0.4338]
[1760509446879,0.6336,4091.0,4090.0,2.44497531]
[1760509447081,0.6336,4091.0,4089.6,0.4338]
[1760509447395,0.6336,4091.1,4089.6,0.4338]
[1760509447587,0.6336,4091.1,4090.2,2.44485535]
[1760509447910,0.2268,4091.5,4090.3,0.2275]
[1760509448587,0.6336,4091.4,4090.7,2.44456857]
[1760509448779,0.2268,4091.5,4090.5,2.4446829]
[1760509448983,0.6336,4091.4,4090.6,2.44460937]
[1760509449701,3.07775811,4091.4,4090.6,2.44460937]
[1760509449903,0.6336,4091.4,4090.6,2.44460937]
[1760509450699,0.6336,4091.4,4090.7,2.4445516]
[1760509450998,2.44410148,4091.5,4090.9,2.44444007]
[1760509450999,0.6336,4091.5,4090.9,2.44444007]
[1760509451319,0.6336,4091.5,4090.9,2.4444154]
[1760509451623,0.2268,4092.0,4090.9,0.4328]
[1760509451810,0.2268,4092.0,4090.4,0.4328]
[1760509451811,0.4485,4091.9,4090.4,0.4328]
[1760509452015,0.6336,4091.8,4090.7,2.44453749]
[1760509452197,0.6336,4091.6,4090.5,2.44468891]
[1760509452399,0.6336,4091.6,4090.7,2.44456689]
[1760509452400,3.07763174,4091.6,4090.7,2.44456689]
[1760509452621,2.5536,4091.6,4090.8,2.4445065]
[1760509452822,0.6336,4091.6,4090.9,2.44443724]
[1760509453038,1.92,4091.8,4090.4,2.44472067]
[1760509453323,0.6336,4091.9,4091.3,2.44420372]
[1760509453516,0.6336,4091.9,4091.4,0.2367]
[1760509453724,2.89207584,4092.4,4091.4,0.2367]
[1760509453725,2.67002206,4093.0,4091.4,0.2367]
[1760509454031,0.6832,4093.0,4092.0,2.44376955]
[1760509454196,2.44330414,4092.9,4091.5,0.4328]
[1760509454516,0.31265041,4092.8,4091.6,2.44403167]
[1760509454836,4.58999669,4093.0,4092.2,2.44365991]
[1760509455137,0.1216,4092.6,4092.3,2.44360547]
[1760509455700,0.1216,4092.6,4092.5,2.44349419]
[1760509455896,0.1216,4092.8,4092.6,2.44341324]
[1760509456094,0.1216,4092.8,4092.7,2.44337478]
[1760509456626,0.1216,4092.8,4092.2,2.44367332]
[1760509456797,0.1216,4092.8,4092.6,2.44343301]
[1760509457235,0.1216,4092.8,4092.7,2.44337478]
[1760509457741,4.36272164,4093.8,4092.7,2.87617463]
[1760509457902,0.90275216,4093.7,4092.1,0.6097]
[1760509458107,0.1216,4093.1,4092.5,0.1216]
[1760509458733,0.1216,4092.8,4092.1,2.74223187]
[1760509458938,0.1216,4092.8,4092.1,0.1216]
[1760509459311,0.1216,4092.8,4091.8,0.1769]
[1760509459312,0.1216,4092.2,4091.5,0.1216]
[1760509459506,0.1216,4092.2,4091.7,2.44395147]
[1760509459706,0.37811097,4092.2,4091.7,2.44395147]
[1760509460224,0.37811097,4092.2,4091.8,2.44390475]
[1760509460624,0.37811097,4092.2,4091.7,2.44396563]
[1760509461003,0.37811097,4092.2,4091.6,2.44397511]
[1760509461200,0.25651097,4092.2,4091.5,0.1216]
[1760509461501,0.25651097,4092.2,4090.5,0.1216]
[1760509461502,0.7552,4091.5,4090.5,0.1216]
[1760509461723,0.1216,4091.2,4090.5,2.56627115]
[1760509461934,0.1216,4091.2,4090.7,2.4445255]
[1760509462144,0.1216,4091.2,4090.8,2.44450606]
[1760509462631,0.6336,4091.5,4089.8,0.002]
[1760509462632,1.92,4090.7,4089.8,0.002]
[1760509462842,0.27703,4090.6,4089.8,0.002]
[1760509463208,0.27703,4090.6,4089.8,2.44709779]
[1760509463529,0.27703,4090.6,4089.8,0.002]
[1760509463829,0.27703,4090.6,4089.9,2.4450204]
[1760509464030,0.27703,4090.6,4090.0,2.44498176]
[1760509464231,0.52751645,4090.5,4089.8,0.002]
[1760509464544,0.52751645,4090.5,4089.8,2.44710424]
[1760509464842,0.52751645,4090.5,4089.8,0.002]
[1760509465008,2.44475455,4090.4,4089.8,0.002]
[1760509465335,0.8499,4089.9,4089.8,0.002]
[1760509465642,4.48452636,4089.9,4089.8,0.002]
[1760509465834,4.74772636,4089.9,4089.8,0.002]
[1760509466212,6.66772636,4089.9,4089.8,0.002]
[1760509466432,0.02390158,4088.7,4088.2,0.4328]
[1760509466736,0.02390158,4088.7,4087.9,2.44618551]
[1760509466737,0.02390158,4088.7,4087.3,0.2275]
[1760509466938,0.02390158,4088.7,4087.7,0.4328]
[1760509467107,0.02390158,4088.7,4087.9,2.44623467]
[1760509467434,0.02390158,4088.7,4087.8,2.44630363]
[1760509467435,0.26859563,4088.6,4087.8,2.44630363]
[1760509467608,0.26859563,4088.6,4087.9,2.44623746]
[1760509467805,0.26859563,4088.6,4088.0,2.44614581]
[1760509468129,0.02390158,4088.7,4087.9,2.44623549]
[1760509468332,0.02390158,4088.7,4087.3,0.6603]
[1760509468518,2.44582612,4088.6,4087.7,2.44634692]
[1760509468705,0.02390158,4088.7,4087.6,0.4328]
[1760509468907,0.29248564,4088.7,4087.8,2.44629484]
[1760509469108,0.29248564,4088.7,4087.7,2.44636348]
[1760509469312,0.29248564,4088.7,4087.8,0.4328]
[1760509469561,0.02390158,4088.7,4088.3,2.44600281]
[1760509469705,0.02390158,4088.7,4087.1,3.04667138]
[1760509469706,0.02390158,4088.7,4088.4,0.02445944]
[1760509469909,0.02390158,4088.7,4087.9,0.6097]
[1760509470741,0.02390158,4088.7,4088.6,2.44582497]
[1760509471113,0.02390158,4088.7,4088.6,2.87862497]
[1760509471709,0.02390158,4088.7,4087.9,0.1769]
[1760509472116,0.24694901,4088.7,4087.9,2.62311106]
[1760509472512,0.1216,4088.6,4087.9,2.74471106]
[1760509472725,0.1216,4088.6,4087.9,0.2985]
[1760509472929,0.1216,4088.6,4087.9,2.74473712]
[1760509473915,0.1216,4088.6,4088.0,2.44618315]
[1760509474111,0.1216,4088.6,4087.9,0.2985]
[1760509474315,2.5674272,4088.6,4087.9,0.2985]
[1760509474514,0.28143762,4088.5,4087.9,0.2985]
[1760509474943,0.28143762,4088.5,4087.9,2.74473905]
[1760509475144,0.28143762,4088.5,4087.9,0.2985]
[1760509475311,0.28143762,4088.5,4087.4,0.4328]
[1760509475515,0.28143762,4088.5,4087.1,0.6]
[1760509475516,0.6336,4088.4,4087.2,2.44664355]
[1760509475717,0.1216,4087.8,4087.2,2.44666275]
[1760509475916,0.1216,4087.8,4087.1,0.7216]
[1760509475917,0.1216,4087.8,4087.3,2.44658798]
[1760509476146,0.1216,4087.8,4087.4,0.4328]
[1760509476328,0.1216,4087.8,4087.4,0.40768858]
[1760509476527,0.25677435,4087.8,4087.1,0.6]
[1760509476844,2.44637258,4087.7,4087.1,0.6]
[1760509477047,0.25677435,4087.8,4087.1,0.6]
[1760509477214,0.9207,4087.8,4087.1,0.6]
[1760509477413,0.2167,4087.9,4087.1,3.2582799]
[1760509477612,0.6336,4088.5,4087.2,2.44661635]
[1760509477845,2.44611863,4088.2,4087.2,2.44660486]
[1760509478145,0.2871,4088.4,4087.3,2.44659675]
[1760509478350,2.44629078,4087.9,4087.1,0.8116]
[1760509478545,2.7332905,4088.0,4087.1,0.8116]
[1760509478850,2.44642617,4087.6,4087.1,0.6]
[1760509479015,2.44636954,4087.7,4087.1,0.6]
[1760509479217,2.44629939,4087.9,4087.1,3.04671936]
[1760509479417,1.43445891,4087.8,4087.1,3.04671936]
[1760509479719,1.43445891,4087.8,4087.1,3.25830885]
[1760509479922,0.6336,4087.7,4087.1,0.6]
[1760509480121,2.44648324,4087.5,4087.1,0.6]
[1760509480466,3.14257414,4087.5,4087.1,0.6]
[1760509480676,0.9831909,4087.5,4087.1,0.6]
[1760509480965,0.6960909,4087.5,4087.1,0.6]
[1760509481329,2.44642562,4087.6,4087.1,0.6]
[1760509481522,2.4464838,4087.5,4087.1,0.6]
[1760509481741,0.2871,4087.6,4087.1,0.6]
[1760509482133,0.6336,4087.7,4087.1,0.6]
[1760509482360,3.07998394,4087.7,4087.1,0.6]
[1760509482667,2.89787062,4087.6,4087.1,0.6]
[1760509482954,0.45144429,4087.6,4087.1,0.6]
[1760509483142,2.44654479,4087.4,4087.1,0.6]
[1760509483345,0.2871,4087.6,4087.1,0.6]
[1760509483880,1.43445891,4087.8,4087.3,2.44655759]
[1760509485063,1.43445891,4087.8,4087.1,0.6]
[1760509485237,0.14344589,4087.7,4087.2,2.44664689]
[1760509485438,9.16504754,4088.1,4087.1,0.8116]
[1760509485642,0.6336,4088.2,4087.1,1.2606]
[1760509485868,0.6336,4088.2,4087.2,2.44666275]
[1760509486064,2.44716004,4088.3,4087.1,1.2606]
[1760509486065,0.63474738,4088.3,4087.3,2.44658576]
[1760509486264,2.73304688,4088.4,4087.1,1.2606]
[1760509486468,0.29497469,4088.3,4087.6,2.4464085]
[1760509486657,0.1226,4087.8,4087.6,2.4464085]
[1760509486835,0.1226,4087.8,4087.5,2.44647694]
[1760509487036,0.1226,4087.8,4087.3,0.002]
[1760509487450,0.1226,4087.8,4087.3,2.44859376]
[1760509487696,0.1226,4087.8,4087.4,2.44653612]
[1760509487902,0.1226,4087.8,4087.3,0.002]
[1760509488197,0.37947937,4087.8,4087.3,0.002]
[1760509488381,2.44636771,4087.7,4087.3,0.002]
[1760509488583,0.1216,4087.5,4087.3,0.002]
[1760509489610,0.1216,4087.5,4087.3,0.451]
[1760509489758,0.1216,4087.5,4087.4,2.44654303]
[1760509490158,0.001,4087.8,4087.4,2.44654303]
[1760509490159,0.001,4087.8,4087.5,2.44648318]
[1760509490398,0.001,4087.8,4087.7,2.44636348]
[1760509490862,0.001,4087.8,4087.7,2.89536348]
[1760509493079,0.001,4087.8,4087.7,2.44636348]
[1760509493601,0.001,4087.8,4087.7,2.90466348]
[1760509494468,0.001,4087.8,4087.7,2.44636348]
[1760509495697,0.001,4087.8,4087.7,2.90466348]
[1760509496470,0.001,4087.8,4087.7,2.88014925]
[1760509496670,0.001,4087.8,4087.7,2.42184925]
[1760509497500,0.001,4087.8,4087.7,2.22036069]
[1760509497868,0.001,4087.8,4087.7,2.67866069]
[1760509499302,0.001,4087.8,4087.7,3.19361903]
[1760509499480,0.001,4087.8,4087.7,3.21808266]
[1760509499797,0.001,4087.8,4087.7,5.13808266]
[1760509499972,0.001,4087.8,4087.7,5.11361903]
[1760509500368,0.001,4087.8,4087.7,5.23521903]
[1760509500588,0.001,4087.8,4087.7,2.22036069]
[1760509502566,0.001,4087.8,4087.3,0.002]
[1760509502782,0.2707,4087.7,4087.3,0.002]
[1760509502975,0.2707,4087.7,4087.4,2.44654303]
[1760509503613,0.2707,4087.6,4087.3,0.002]
[1760509503807,0.2707,4087.5,4087.3,0.002]
[1760509504110,0.001,4087.8,4087.3,0.002]
[1760509504410,0.001,4087.8,4087.7,2.44636348]
[1760509506514,0.001,4087.8,4087.3,0.002]
[1760509506515,0.2717,4087.8,4087.3,0.002]
[1760509506814,0.2707,4087.7,4087.3,0.002]
[1760509507321,0.2707,4087.6,4087.3,0.002]
[1760509507494,0.2707,4087.5,4087.3,0.002]
[1760509507819,0.2707,4087.4,4087.3,0.002]
[1760509508330,0.2717,4087.8,4087.3,0.002]
[1760509508535,0.2707,4087.7,4087.3,0.002]
[1760509508704,0.27179978,4087.6,4087.3,0.002]
[1760509509021,0.001,4087.8,4087.3,0.002]
[1760509509231,0.001,4087.8,4087.7,2.44636348]
[1760509510515,0.001,4087.8,4087.4,2.44654303]
[1760509510690,0.001,4087.8,4087.7,2.44636348]
[1760509511816,0.2717,4087.8,4087.3,2.44859654]
[1760509511993,0.2717,4087.8,4087.3,2.57019654]
[1760509512198,0.2717,4087.8,4087.6,2.44641019]
[1760509512408,0.2717,4087.8,4087.3,2.57019654]
[1760509512609,0.2707,4087.7,4087.3,0.1236]
[1760509512983,0.001,4087.8,4087.3,0.1236]
[1760509513186,0.1216,4087.7,4087.3,0.002]
[1760509513389,0.1216,4087.7,4087.6,2.44642332]
[1760509513793,0.1216,4087.7,4087.3,0.002]
[1760509514001,0.1216,4087.7,4087.5,2.44643429]
[1760509514322,0.1216,4087.7,4087.6,2.44642332]
[1760509514716,0.1216,4087.7,4087.3,0.002]
[1760509514717,0.1216,4087.7,4087.3,2.44860229]
[1760509515022,0.1216,4087.7,4087.6,2.44642332]
[1760509516031,0.001,4087.8,4087.7,2.44636348]
[1760509517198,0.001,4087.8,4087.7,2.92242711]
[1760509517521,0.001,4087.8,4087.7,3.56616216]
[1760509518124,0.001,4087.8,4087.7,2.56796348]
[1760509518313,0.001,4087.8,4087.3,0.002]
[1760509518530,0.001,4087.8,4087.5,2.44643331]
[1760509518698,0.001,4087.8,4087.4,2.56812995]
[1760509519037,0.2717,4087.8,4087.4,0.1216]
[1760509519327,0.2717,4087.8,4087.3,0.002]
[1760509519328,0.1216,4087.5,4087.3,0.002]
[1760509519826,0.3923,4087.5,4087.3,0.002]
[1760509520031,0.2707,4087.4,4087.3,0.002]
[1760509520519,0.1216,4087.5,4087.3,0.002]
[1760509521903,0.001,4087.8,4087.4,0.3332]
[1760509522105,0.001,4087.8,4087.5,2.44642631]
[1760509522306,0.001,4087.8,4087.4,0.1216]
[1760509522509,0.001,4087.8,4087.7,2.44636348]
[1760509523331,0.001,4087.8,4087.7,3.44456707]
[1760509523531,0.001,4087.8,4087.7,2.89796348]
[1760509524298,0.001,4087.8,4087.7,2.44636348]
[1760509527242,0.001,4087.8,4087.7,2.89796348]
[1760509528821,0.001,4087.8,4087.7,2.44636348]
[1760509529227,0.001,4087.8,4087.7,2.89796348]
[1760509529818,0.001,4087.8,4087.7,2.44636348]
[1760509530253,0.001,4087.8,4087.7,2.89796348]
[1760509531244,0.001,4087.8,4087.7,2.44636348]
[1760509534543,0.001,4087.8,4087.7,2.89796348]
[1760509534749,0.001,4087.8,4087.7,3.44456707]
[1760509536163,0.001,4087.8,4087.7,2.99296707]
[1760509537354,0.001,4087.8,4087.7,2.44636348]
[1760509539970,0.001,4087.8,4087.7,2.90456348]
[1760509540270,0.001,4087.8,4087.7,2.44636348]
[1760509542775,0.2717,4087.8,4087.3,0.002]
[1760509542962,0.3933,4087.8,4087.3,0.002]
[1760509543163,2.71804458,4087.8,4087.3,0.002]
[1760509543348,0.1216,4087.5,4087.3,0.002]
[1760509543779,2.71724303,4087.4,4087.3,0.002]
[1760509544777,0.2707,4087.4,4087.3,0.002]
[1760509545274,2.71724303,4087.4,4087.3,0.002]
[1760509545574,3.35084303,4087.4,4087.3,0.002]
[1760509545788,3.94409278,4087.4,4087.3,0.002]
[1760509547193,5.86409278,4087.4,4087.3,0.002]
[1760509547354,5.86409278,4087.4,4084.5,0.4582]
[1760509547355,0.6336,4086.1,4084.1,0.1769]
[1760509547545,0.6336,4085.9,4084.3,0.4582]
[1760509547753,9.17707055,4087.3,4084.3,0.4582]
[1760509547754,0.2696,4086.5,4084.4,0.0244834]
[1760509548083,0.2691,4086.9,4086.0,2.44734555]
[1760509548282,0.00160229,4086.4,4084.2,1.92]
[1760509548583,2.44737969,4086.1,4084.9,2.44803914]
[1760509548769,2.44771046,4085.5,4084.5,2.4482742]
[1760509548969,0.2686,4085.4,4084.5,2.4482742]
[1760509549170,0.00179396,4085.8,4084.1,0.1769]
[1760509549492,0.00179396,4085.8,4082.9,0.2275]
[1760509549493,0.6336,4085.3,4083.7,0.4582]
[1760509549651,0.63546586,4085.3,4084.2,2.62533933]
[1760509549862,0.63546586,4085.3,4084.2,0.1769]
[1760509550259,0.2686,4085.4,4084.2,0.92212596]
[1760509550467,0.2183,4085.7,4084.3,0.48268399]
[1760509550684,0.225,4086.0,4084.3,2.90658235]
[1760509550874,0.225,4086.0,4084.4,0.4582]
[1760509551092,0.225,4086.0,4084.5,2.44828008]
[1760509551393,0.225,4086.0,4084.7,2.4481602]
[1760509551688,0.2595,4085.9,4084.6,0.4582]
[1760509551866,2.4475011,4085.8,4084.8,2.44804337]
[1760509552459,2.44756451,4085.7,4084.8,2.44804337]
[1760509552677,2.44762223,4085.6,4084.5,2.44828008]
[1760509552880,0.2595,4085.9,4084.6,0.0244822]
[1760509553086,0.2595,4085.9,4085.0,2.44797812]
[1760509553387,2.44780804,4085.3,4084.2,0.1769]
[1760509553589,0.2595,4085.3,4084.5,2.44826884]
[1760509553765,0.2595,4085.7,4084.6,0.0244822]
[1760509553966,0.2595,4085.7,4084.5,0.445]
[1760509554170,0.2595,4085.7,4085.1,2.44787068]
[1760509554370,0.0016502,4086.2,4085.2,0.2275]
[1760509554604,0.2595,4086.3,4085.2,0.2275]
[1760509554764,0.2595,4086.3,4085.3,0.445]
[1760509555065,0.2595,4086.3,4085.2,0.2275]
[1760509555257,2.44749716,4085.9,4084.9,2.44804034]
[1760509555455,0.2253,4086.4,4084.9,0.445]
[1760509555758,0.2253,4086.4,4085.0,0.445]
[1760509555958,0.2253,4086.4,4085.3,2.44775194]
[1760509556161,2.44726151,4086.2,4085.3,2.44775194]
[1760509556554,2.44726151,4086.2,4085.4,2.44773888]
[1760509556759,0.53788077,4086.1,4085.5,2.44766974]
[1760509556959,0.53788077,4086.1,4085.6,2.44761716]
[1760509557157,0.1216,4085.8,4085.5,2.44768034]
[1760509557568,0.1216,4085.8,4085.3,2.4477443]
[1760509557873,0.1216,4085.8,4085.1,0.3491]
[1760509558057,0.1216,4085.8,4085.2,2.44786056]
[1760509558260,0.1216,4085.8,4085.3,2.44776732]
[1760509558496,0.1216,4085.8,4085.1,0.3491]
[1760509558702,0.1216,4085.8,4085.5,2.44767387]
[1760509558906,0.1216,4085.8,4085.4,2.44768971]
[1760509559195,0.1216,4085.8,4085.5,2.4476609]
[1760509559390,0.1216,4085.8,4085.7,2.447561]
[1760509559604,0.1216,4085.8,4085.3,0.445]
[1760509559783,0.1216,4085.8,4085.4,2.44771967]
[1760509560095,0.1216,4085.8,4085.5,2.44766791]
[1760509560298,0.1216,4085.8,4085.6,2.44761735]
[1760509561182,0.2591,4086.1,4084.7,0.445]
[1760509561369,2.44743164,4086.0,4084.9,2.44802545]
[1760509561566,2.44743164,4086.0,4084.7,0.445]
[1760509561567,0.51538073,4085.9,4085.2,2.44780172]
[1760509561803,2.96282773,4085.9,4085.1,2.44790506]
[1760509562097,2.44751993,4085.8,4085.0,2.44796652]
[1760509562464,2.44756191,4085.7,4085.0,2.44796652]
[1760509562882,0.2591,4086.1,4084.7,0.445]
[1760509562883,2.44732239,4087.8,4084.7,0.445]
[1760509563081,2.44732239,4087.8,4085.1,0.2275]
[1760509563082,0.2591,4086.6,4085.1,0.2275]
[1760509563288,0.2255,4087.0,4085.2,2.91733553]
[1760509563482,0.2255,4087.0,4086.4,2.4471271]
[1760509563684,0.2255,4087.0,4086.2,0.2275]
[1760509564214,0.2255,4087.0,4086.4,2.44712927]
[1760509564534,0.001,4087.1,4087.0,2.44678248]
[1760509565218,0.001,4087.1,4087.0,2.89178248]
[1760509565593,0.001,4087.1,4087.0,2.98064677]
[1760509565792,0.001,4087.1,4087.0,5.37011459]
[1760509566001,0.001,4087.1,4087.0,5.34564677]
[1760509566405,0.001,4087.1,4087.0,2.89178248]
[1760509567318,0.001,4087.1,4087.0,2.44678248]
[1760509567697,0.001,4087.1,4087.0,2.89178248]
[1760509569413,0.001,4087.1,4087.0,2.44678248]
[1760509570210,0.001,4087.1,4087.0,2.87668248]
[1760509570713,0.001,4087.1,4087.0,3.40903677]
[1760509570915,0.001,4087.1,4087.0,3.43350459]
[1760509571127,0.001,4087.1,4087.0,3.55510459]
[1760509571296,0.001,4087.1,4087.0,3.12520459]
[1760509571500,0.001,4087.1,4087.0,2.56838248]
[1760509577706,0.001,4087.1,4087.0,0.1216]
[1760509577906,0.4446,4087.1,4086.4,0.1216]
[1760509578136,0.5662,4087.1,4086.9,2.44684083]
[1760509578310,0.5662,4087.1,4086.4,0.1216]
[1760509578311,0.5662,4087.1,4087.0,2.44678248]
[1760509578511,0.5662,4087.1,4086.9,2.44683557]
[1760509578841,0.5662,4087.1,4086.8,2.44686502]
[1760509579039,0.5662,4087.1,4087.0,2.44678248]
[1760509579209,0.1226,4087.1,4087.0,2.44678248]
[1760509579530,0.1226,4087.1,4087.0,2.87668248]
[1760509579531,0.001,4087.1,4087.0,2.87668248]
[1760509579833,0.001,4087.1,4087.0,2.44678248]
[1760509581426,0.001,4087.1,4087.0,2.99828248]
[1760509581735,0.001,4087.1,4087.0,3.0723567]
[1760509581934,0.001,4087.1,4087.0,2.44678248]
[1760509582300,0.001,4087.1,4087.0,2.9011503]
[1760509582700,0.001,4087.1,4087.0,2.87668248]
[1760509583320,0.001,4087.1,4087.0,2.87868248]
[1760509584010,0.001,4087.1,4087.0,4.79868248]
[1760509584213,0.001,4087.1,4087.0,5.54773659]
[1760509585433,1e-08,4087.8,4087.7,2.44636348]
[1760509585947,1e-08,4087.8,4087.7,2.87626348]
[1760509586646,1e-08,4087.8,4087.7,2.44636348]
[1760509587012,1e-08,4087.8,4087.7,2.87626348]
[1760509587214,1e-08,4087.8,4087.7,3.43214457]
[1760509590022,1e-08,4087.8,4087.7,5.35214457]
[1760509591854,1e-08,4087.8,4087.7,5.47374457]
[1760509593325,1e-08,4087.8,4087.7,14.63081008]
[1760509597857,1e-08,4087.8,4087.7,14.50921008]
[1760509598028,0.001,4088.2,4088.1,2.44612411]
[1760509598230,0.001,4088.2,4088.1,5.04735647]
[1760509598628,0.001,4088.2,4088.1,5.47725647]
[1760509599436,0.001,4088.2,4088.1,10.11285647]
[1760509599832,0.001,4088.2,4088.1,5.04735647]
[1760509602563,0.3707,4088.2,4088.1,2.44612411]
[1760509603263,0.001,4088.2,4088.1,2.44612411]
[1760509603790,0.3707,4088.2,4088.1,2.44612411]
[1760509605042,0.001,4088.2,4088.1,2.44612411]
[1760509605469,0.3707,4088.2,4088.1,2.44612411]
[1760509606047,0.001,4088.2,4088.1,2.44612411]
[1760509606356,0.001,4088.2,4088.1,2.93535656]
[1760509606678,0.3707,4088.2,4088.1,2.44612411]
[1760509607655,0.3707,4088.2,4087.0,0.002]
[1760509607874,0.2149,4087.1,4087.0,2.44878248]
[1760509608078,0.2164,4087.7,4087.2,2.44664283]
[1760509608380,0.2164,4087.7,4087.6,2.56802332]
[1760509608680,0.583,4087.7,4087.6,2.56802332]
[1760509609982,0.3676,4088.2,4088.1,2.44612411]
[1760509611074,0.3676,4088.2,4088.1,2.56772411]
[1760509611769,0.001,4088.2,4088.1,3.06911659]
[1760509611972,0.001,4088.2,4088.1,5.36607783]
[1760509612299,0.001,4088.2,4088.1,4.86751659]
[1760509613254,0.001,4088.2,4088.1,2.94751659]
[1760509617758,0.3661,4088.2,4088.1,2.44612411]
[1760509618458,0.3661,4088.2,4087.2,2.44666275]
[1760509618651,0.001,4088.2,4088.0,2.4461786]
[1760509618856,0.3637,4088.1,4088.0,2.4461786]
[1760509620030,0.001,4088.2,4088.1,2.44612411]
[1760509621907,0.001,4088.2,4088.1,2.56772411]
[1760509623438,0.001,4088.2,4088.1,12.78330915]
[1760509623605,0.001,4088.2,4088.1,12.90490915]
[1760509624212,0.001,4088.2,4088.1,14.82490915]
[1760509625215,1e-08,4088.7,4088.6,2.44582497]
[1760509625407,1e-08,4088.7,4088.6,5.04699761]
[1760509625750,1e-08,4088.7,4088.6,5.48089761]
[1760509628613,1e-08,4088.7,4088.6,5.04699761]
[1760509629534,1e-08,4088.7,4088.6,3.12699761]
[1760509631342,1e-08,4088.7,4088.6,3.15145585]
[1760509631534,1e-08,4088.7,4088.6,3.12699761]
[1760509632137,1e-08,4088.7,4088.6,3.57109761]
[1760509632341,1e-08,4088.7,4088.6,3.12699761]
[1760509632512,1e-08,4088.7,4088.6,3.57109761]
[1760509634249,1e-08,4088.7,4088.6,3.12699761]
[1760509634954,1e-08,4088.7,4088.6,3.57109761]
[1760509635155,1e-08,4088.7,4088.6,3.24859761]
[1760509635740,1e-08,4088.7,4088.6,5.16859761]
[1760509637747,1e-08,4088.7,4088.6,5.61269761]
[1760509638129,1e-08,4088.7,4088.6,5.16859761]
[1760509639474,0.44320001,4088.7,4088.6,0.002]